Cogmind - Beta 11.1 @@@ ROGUE MODE // 2022.09.21 @ 21:47:35 Player: DuckBoy Result: Destroyed by D-53 Grenadier with Mini Grenade Launcher Performance ------------- Evolutions (1) 500 Regions Visited (4) 800 Robots Destroyed (26) 130 Value Destroyed (694) 694 Prototype IDs (0) 0 Alien Tech Used (0) 0 Bonus (16) 16 TOTAL SCORE: 2140 Bonus ------- High Alert Combat Kills 16 Cogmind --------- Core Integrity 0/400 Matter 205/300 Energy 0/125 System Corruption 13% Temperature Cool (0) Movement Walking (190) Ox1 Location -9/Mines Parts ------- > --- POWER (1) -------- Light Ion Engine > --- PROPULSION (2) --- Flexi-carbon Leg > --- UTILITY (4) ------ Heat Sink Large Storage Unit Signal Interpreter > --- WEAPON (2) ------- Mining Laser > --- INVENTORY (15) --- (None) Peak State ------------ > --- POWER ------------ Fission Core > --- PROPULSION ------- Aluminum Leg Flexi-carbon Leg > --- UTILITY ---------- Large Storage Unit Signal Interpreter Light Armor Plating > --- WEAPON ----------- Shotgun Bore Cannon > --- INVENTORY -------- Light Ion Engine Heat Sink Light EM Pulse Cannon Improved Light Cannon Mining Laser [Rating: 21] Favorites ----------- Power Light Ion Engine Engine Light Ion Engine Power Core Fission Core Propulsion Aluminum Leg Leg Aluminum Leg Wheel Armored Wheel Utility Signal Interpreter Device Sensor Array Storage Large Storage Unit Processor Signal Interpreter Protection Light Armor Plating Weapon Shotgun Energy Cannon Light EM Pulse Cannon Ballistic Gun Shotgun Ballistic Cannon Improved Light Cannon Special Weapon Mining Laser Build | -11 -10 -10 -9 -9 ------- Run | Scr Mat Min Mat Min Slots Evolved 2 | . . . 2 . Power . | . . . . . Propulsion . | . . . . . Utility 2 | . . . 2 . Weapon . | . . . . . Parts Attached 40 | 3 6 . 17 14 Power 5 | 1 . . 2 2 Engine 4 | 1 . . 2 1 Core 1 | . . . . 1 Reactor . | . . . . . Propulsion 10 | 2 . . 5 3 Treads . | . . . . . Leg 9 | 2 . . 4 3 Wheel 1 | . . . 1 . Hover . | . . . . . Flight . | . . . . . Utility 11 | . 3 . 5 3 Device 3 | . 2 . . 1 Storage 1 | . . . . 1 Processor 1 | . 1 . . . Hackware . | . . . . . Protection 6 | . . . 5 1 Artifact . | . . . . . Weapon 14 | . 3 . 5 6 Energy Gun . | . . . . . Energy Cannon 5 | . 2 . 2 1 Ballistic Gun 4 | . . . 3 1 Ballistic Cannon 3 | . . . . 3 Launcher . | . . . . . Special Weapon 2 | . 1 . . 1 Impact Weapon . | . . . . . Slashing Weapon . | . . . . . Piercing Weapon . | . . . . . Special Melee Weapon . | . . . . . Unidentified Prototypes . | . . . . . Corrupted Parts 1 | . . . 1 . System Corruption 10 | . . . 10 . Parts Lost 21 | . . . 8 13 Power 1 | . . . . 1 Propulsion 5 | . . . 2 3 Utility 7 | . . . 4 3 Weapon 8 | . . . 2 6 Highest Loss Streak 7 | . . . 6 7 To Critical Strikes . | . . . . . Average Slot Usage (%) 91 | . 91 100 89 91 Engine 11 | . 14 14 11 10 Leg 21 | . 28 28 16 19 Device 10 | . 11 14 11 7 Storage 3 | . . . . 10 Processor 11 | . 12 14 11 11 Protection 8 | . . . 15 10 Energy Cannon 10 | . 23 14 8 . Ballistic Gun 9 | . . . 10 18 Special Weapon 2 | . . 14 1 . Naked Turns . | . . . . . Heaviest Build 45 | 3 11 9 30 45 Greatest Support 30 | 20 20 20 20 30 Greatest Overweight (x) 3 | . . . 2 3 Average Overweight (x) . | . . . . . Largest Inventory Capacity 15 | 5 5 5 5 15 Average Capacity 7 | 5 5 5 5 14 Most Carried 8 | . 5 5 5 8 Average Carried 4 | . 3 5 4 6 Final Capacity 15 | 5 5 5 5 15 Final Carried 5 | . 5 5 5 . Class Distribution -------------------- 58% | Mutant 41% | Scavenger-Mutant Dominant Class ---------------- Mutant | -10/Materials Mutant | -10/Mines Scavenger-Mutant | -9/Materials Scavenger-Mutant | -9/Mines Resources | -11 -10 -10 -9 -9 ----------- Run | Scr Mat Min Mat Min Matter Collected 822 | 169 12 32 424 185 Remotely . | . . . . . Salvage Created 920 | . 54 . 642 224 Parts 53 | . 6 . 40 7 Haulers Intercepted 1 | . 1 . . . Recyclers Shooed . | . . . . . Parts Field Recycled . | . . . . . Retrieved Matter . | . . . . . Parts Self-Destructed . | . . . . . Prevented . | . . . . . Kills | -11 -10 -10 -9 -9 ------- Run | Scr Mat Min Mat Min Combat Hostiles Destroyed 25 | . . . 17 8 Guns 18 | . . . 11 7 Cannons 3 | . . . 2 1 AOE 2 | . . . 2 . Classes Destroyed 9 | . 2 . 5 2 Builder 2 | . . . 2 . Hauler 1 | . 1 . . . Recycler 1 | . . . . 1 Mechanic 1 | . . . 1 . Watcher 2 | . 1 . 1 . Swarmer 4 | . . . 4 . Grunt 13 | . . . 11 2 Sentry 2 | . . . 2 . Assembled 6 | . . . . 6 Best Kill Streak 6 | . 1 . 6 6 Combat Bots Only 6 | . . . 6 6 Max Kills in Single Turn 3 | . 1 . 3 1 Gunslinging . | . . . . . Exploded 2 | . . . 2 . Melee . | . . . . . Uniques/NPCs Destroyed . | . . . . . Combat | -11 -10 -10 -9 -9 -------- Run | Scr Mat Min Mat Min Damage Taken 2609 | . . . 1198 1411 Core 415 | . . . 137 278 Absorbed by Shields . | . . . . . Core Remaining (%) 100 | 100 . 100 . . Volleys Fired 76 | . 5 . 48 23 Largest 2 | . 2 . 2 2 Hottest 116 | . 116 . 112 95 Shots Fired 136 | . 10 . 85 41 Gun 84 | . . . 56 28 Cannon 52 | . 10 . 29 13 Launcher . | . . . . . Special . | . . . . . Kinetic 96 | . . . 56 40 Thermal 5 | . 5 . . . Explosive . | . . . . . Electromagnetic 35 | . 5 . 29 1 Robot Hit Streak 7 | . 2 . 7 5 Robot Miss Streak 6 | . 2 . 6 4 Penetration Max . | . . . . . Secondary Targets 3 | . . . 2 1 Max Gunslinging Chain 1 | . . . 1 1 Shots Hit Robots 92 | . 5 . 60 27 Core Hits 52 | . 2 . 34 16 Critical Kills . | . . . . . Critical Parts Destroyed 1 | . . . . 1 Critical Strikes 5 | . 1 . 1 3 Destroy 2 | . . . . 2 Blast 1 | . . . . 1 Corrupt 2 | . 1 . 1 . Melee Attacks . | . . . . . Impact . | . . . . . Slashing . | . . . . . Piercing . | . . . . . Sneak Attacks . | . . . . . Combat Hostiles . | . . . . . Follow-up Attacks . | . . . . . Damage Inflicted 2282 | . 127 . 1637 518 Guns 984 | . . . 591 393 Cannons 728 | . 127 . 476 125 Explosions 570 | . . . 570 . Melee . | . . . . . Ramming . | . . . . . Kinetic 1109 | . . . 591 518 Thermal 267 | . 34 . 233 . Explosive 337 | . . . 337 . Electromagnetic 569 | . 93 . 476 . Impact . | . . . . . Slashing . | . . . . . Piercing . | . . . . . Highest Corruption 13 | . . . 10 13 Average Corruption 10 | . . . 10 10 Corruption Purged . | . . . . . Corruption Blocked . | . . . . . Effects 27 | . . . 11 16 Message Errors 7 | . . . 5 2 Matter Fused 4 | . . . . 4 Heat Flow Errors 2 | . . . 1 1 Energy Discharges 2 | . . . 1 1 Data Loss (minor) 5 | . . . 1 4 Data Loss (major) 2 | . . . 1 1 Misfires 2 | . . . 1 1 Misdirections 1 | . . . 1 . Weapon Failures 2 | . . . . 2 Overload Shots . | . . . . . Overflow Damage 10 | . . . 10 . Projectiles 10 | . . . 10 . Explosions . | . . . . . Melee . | . . . . . Knockbacks 1 | . . . . 1 Impact . | . . . . . Kinetic 1 | . . . . 1 Secondary . | . . . . . Self-Inflicted Damage 108 | . . . 108 . Shots 2 | . . . 2 . Rammed . | . . . . . Targets Rammed . | . . . . . Kicked . | . . . . . Crushed . | . . . . . Highest Temperature 255 | . 138 . 255 170 Average Temperature 62 | . 64 . 68 48 Received Heat Transfer 680 | . . . 489 191 Siege Activations . | . . . . . Robots Corrupted 2 | . . . 2 . Combat Hostiles 2 | . . . 2 . Parts Fried 6 | . 1 . 5 . Impact Corruptions . | . . . . . Robots Melted . | . . . . . Combat Hostiles . | . . . . . Parts Melted . | . . . . . Heat Transferred 324 | . 74 . 250 . Parts Sabotaged . | . . . . . Parts Stolen . | . . . . . Parts Stripped . | . . . . . Power Chain Reactions 2 | . . . 2 . Missiles Intercepted . | . . . . . Alert | -11 -10 -10 -9 -9 ------- Run | Scr Mat Min Mat Min Peak Influence 514 | . 33 12 514 255 Initial 200 | . . 12 4 200 Average 142 | . 8 12 237 207 Maximum Alert Level 2 | . . . 2 1 Low Security (%) 53 | 100 100 100 32 18 Level 1 43 | . . . 56 81 Level 2 3 | . . . 10 . Level 3 . | . . . . . Level 4 . | . . . . . Level 5 . | . . . . . High Security . | . . . . . Max Security . | . . . . . Squads Dispatched 3 | . 1 . 2 . Investigation . | . . . . . Extermination . | . . . . . Reinforcement 3 | . 1 . 2 . Assault . | . . . . . Garrison . | . . . . . Intercept . | . . . . . Searches Triggered . | . . . . . Construction Impeded 1 | . . . 1 . Haulers Reinforced . | . . . . . Active Scanning Responses . | . . . . . Cargo Convoy Interrupts . | . . . . . Stealth | -11 -10 -10 -9 -9 --------- Run | Scr Mat Min Mat Min Distress Signals 5 | . . . 5 . Communications Jammed . | . . . . . Distress Signals . | . . . . . Times Spotted 42 | . 2 . 27 13 Peak Tracking Total 8 | . 1 . 5 8 Tactical Retreats . | . . . . . Traps | -11 -10 -10 -9 -9 ------- Run | Scr Mat Min Mat Min Traps Triggered . | . . . . . Indirectly . | . . . . . Trap Hack Attempts . | . . . . . Triggered . | . . . . . Disarmed . | . . . . . Reprogrammed . | . . . . . Reused . | . . . . . Traps Extracted . | . . . . . Installed . | . . . . . Triggered . | . . . . . Machines | -11 -10 -10 -9 -9 ---------- Run | Scr Mat Min Mat Min Machines Disabled 2 | . . . 2 . Max in Single Turn 1 | . . . 1 . Machines Sabotaged . | . . . . . Garrisons Compromised . | . . . . . Overloaded Fab Kills . | . . . . . Hacking | -11 -10 -10 -9 -9 --------- Run | Scr Mat Min Mat Min Machines Accessed 4 | . 4 . . . Terminals 4 | . 4 . . . Fabricators . | . . . . . Repair Stations . | . . . . . Recycling Units . | . . . . . Scanalyzers . | . . . . . Garrison Access . | . . . . . Total Hacks 10 | . 10 . . . Successful 3 | . 3 . . . Failed 7 | . 7 . . . Catastrophic 2 | . 2 . . . Database Lockouts . | . . . . . Manual 9 | . 9 . . . Terminals 10 | . 10 . . . Fabricators . | . . . . . Repair Stations . | . . . . . Recycling Units . | . . . . . Scanalyzers . | . . . . . Garrison Access . | . . . . . Terminal Hacks 1 | . 1 . . . Terminal Index 1 | . 1 . . . Fabricator Hacks . | . . . . . Repair Station Hacks . | . . . . . Recycling Unit Hacks . | . . . . . Scanalyzer . | . . . . . Garrison Access Hacks . | . . . . . Unauthorized Hacks 2 | . 2 . . . Terminals 2 | . 2 . . . Botnet 2 | . 2 . . . Fabricators . | . . . . . Repair Stations . | . . . . . Recycling Units . | . . . . . Scanalyzers . | . . . . . Garrison Access . | . . . . . Data Cores Recovered . | . . . . . Used . | . . . . . Hacking Detections 4 | . 4 . . . Full Trace Events . | . . . . . Feedback Events . | . . . . . Feedback Blocked . | . . . . . Robot Schematics Acquired . | . . . . . Robots Built . | . . . . . Authchips . | . . . . . Time . | . . . . . Total Robot Build Rating . | . . . . . Part Schematics Acquired . | . . . . . Parts Built . | . . . . . Authchips . | . . . . . Time . | . . . . . Total Part Build Rating . | . . . . . Parts Repaired . | . . . . . Time . | . . . . . Parts Recycled . | . . . . . Recycled Matter . | . . . . . Retrieved Matter . | . . . . . Retrieved Components . | . . . . . Parts Scanalyzed . | . . . . . Part Schematics Acquired . | . . . . . Parts Damaged . | . . . . . Bothacking | -11 -10 -10 -9 -9 ------------ Run | Scr Mat Min Mat Min Used RIF Installer . | . . . . . Robots Hacked . | . . . . . Non-combat . | . . . . . Combat . | . . . . . Robot Hacks Applied . | . . . . . Relay Couplers Released . | . . . . . Fabnet Peak Effective % . | . . . . . Robots Rewired . | . . . . . Allies Hacked . | . . . . . Hacks Repelled . | . . . . . Allies | -11 -10 -10 -9 -9 -------- Run | Scr Mat Min Mat Min Total Allies . | . . . . . Largest Group . | . . . . . Highest-Rated Group . | . . . . . Highest-Rated Ally . | . . . . . Total Orders . | . . . . . Ally Attacks . | . . . . . Total Damage . | . . . . . Kills . | . . . . . Allies Corrupted . | . . . . . Allies Melted . | . . . . . Intel | -11 -10 -10 -9 -9 ------- Run | Scr Mat Min Mat Min Robot Analysis Total . | . . . . . Derelict Logs Recovered 2 | . . 1 . 1 Drone Launches . | . . . . . Drone Recoveries . | . . . . . Exploration | -11 -10 -10 -9 -9 ------------- Run | Scr Mat Min Mat Min Turns Passed 1230 | 29 312 121 375 393 Spaces Moved 631 | 23 221 92 132 163 Core 3 | 3 . . . . Treads . | . . . . . Legs 602 | 20 221 92 106 163 Wheels 26 | . . . 26 . Hover . | . . . . . Flight . | . . . . . Fastest Speed 50 | 50 120 120 105 120 Average Speed 143 | 110 120 120 149 187 Slowest Speed 330 | 120 120 120 260 330 Overloaded Moves . | . . . . . Propulsion Burnouts . | . . . . . Robots Hopped . | . . . . . Cave-ins Triggered . | . . . . . Exploration Rate (%) 25 | 3 34 31 15 43 Regions Visited 4 Branch Regions 2 Pre-discovered Areas . | . . . . . Known Exits Taken 3 | . 1 1 1 . Unknown Exits Taken 1 | 1 . . . . Scrap Searched 2 | . . 1 . 1 Spaces Dug . | . . . . . Terrain Destroyed 47 | . . . 41 6 Melee . | . . . . . Projectile 6 | . . . . 6 AOE 41 | . . . 41 . Terrain Rammed . | . . . . . Walls Destroyed . | . . . . . Machines Disabled . | . . . . . Actions | -11 -10 -10 -9 -9 --------- Run | Scr Mat Min Mat Min Total 816 | 25 257 102 225 207 Wait 47 | . 13 11 19 4 Move 627 | 22 220 91 131 163 Hop . | . . . . . Pick Up 14 | . 8 . 4 2 Fast Attach 18 | 3 6 . 6 3 Attach 13 | . . . 4 9 Detach . | . . . . . Swap 9 | . . . 7 2 Drop 12 | . 5 . 6 1 Fire 76 | . 5 . 48 23 Melee . | . . . . . Ram . | . . . . . Kick . | . . . . . Crush . | . . . . . Escape Stasis . | . . . . . Rewire . | . . . . . Trap . | . . . . . Miscellaneous . | . . . . . Route ------- -11/Scrapyard -10/Materials -10/Mines (discovered 2 exits: *Mat / Exi) -9/Materials -9/Mines History --------- Turn | Location | Event 6 | -11/Scrapyard | Discovered new exit (range 16) 30 | -11/Scrapyard | Entered Materials 298 | -10/Materials | Discovered new exit (range 11) 300 | -10/Materials | Build established: Mutant 330 | -10/Materials | Identified exit to Mines 342 | -10/Materials | Entered Mines 443 | -10/Mines | Discovered new exit (range 14) 459 | -10/Mines | Identified exit to Exiles 460 | -10/Mines | Identified exit to Materials 463 | -10/Mines | Entered Materials 463 | -9/Materials | Evolved 2 slots: Utility x2 620 | -9/Materials | System corruption reached 10% 639 | -9/Materials | Lost 6 parts (2n2u2w) 829 | -9/Materials | Discovered new exit (range 6) 837 | -9/Materials | Identified exit to Mines 838 | -9/Materials | Entered Mines 1056 | -9/Mines | Build established: Scavenger-Mutant 1094 | -9/Mines | Assembled infested the area 1099 | -9/Mines | Assisted by a Guerilla fighting off Assembled 1145 | -9/Mines | Core integrity fell below 50% 1188 | -9/Mines | Lost 6 parts (2n2u2w) 1220 | -9/Mines | Core integrity fell below 20% 1231 | -9/Mines | Destroyed by D-53 Grenadier with Mini Grenade Launcher Last Messages --------------- 01211_ Shotgun destroyed. 01211_ Lgt. Armor Plating destroyed. 01212_ HV Slug penetrates Wall. 01213_ Aluminum Leg destroyed. 01214_ HV Slug penetrates D-53 Grenadier. 01214_ D-53 Grenadier suffers critical hit (Destroy). 01214_ Destroyed Cmb. Airjet. 01216_ HV Slug penetrates Wall. 01217_ Fission Core destroyed. 01218_ The unstable cave ceiling collapses. 01218_ HV Slug penetrates D-53 Grenadier. 01218_ D-53 Grenadier suffers critical hit (Destroy). 01219_ D-53 Grenadier destroyed. 01219_ Bore Cannon destroyed. 01221_ System corrupted: Component data lost. 01224_ The unstable cave ceiling collapses. 01225_ D-53 Grenadier knocked back. 01227_ Imp. Light Cannon destroyed. 01227_ Lgt. EM Pulse Cannon destroyed. 01230_ The unstable cave ceiling collapses. Map ----- +----------------------------------------------------+ | | | | | | | | | | | ?????????????????????????????????????????????????? | | ?????????????????????????????????????????????????? | | ?????????????????????????????????????????????????? | | #????????????????????????????????????????????????? | | #?????????????????????????##?????????????????????? | | ############???????###++## ##????????????????????? | | #?????### ##???????????????????? | | #????## #???????????????????? | | ## ######!!#???## ## #???????????????????? | | ## #????#[[#??## ##??????????????????? | | ## #????# %#### ##?????????????????? | | ?# #????#%% #?????????????????? | | ?# #????# #?????????????????? | | ?# #????####### * * ##?????????????????? | | ?# #??????????## =% ###??????????????????? | | ?# #???????????## # #????????????????????? | | ?# #????????????# # ##???????????????????? | | ?# #????????????# # ##??????????????????? | | ?# #?????????#### # # #??????????????????? | | ?# #?????????# ## #????????? | | ## #?????????# @ < #????????? | | #?????????# #### d ????????? | | ## #???????? ?????## ### ## ????????? | | ?# #??????# ????????## #???#??????????????? | | ?# #?????????????????### # ####??????????????????? | | ?# #???????????????????##?##?????????????????????? | | ?# #?????????????????????????????????????????????? | | ?# #?????????????????????????????????????????????? | | ?# #?????????????????????????????????????????????? | | ?# ?????????????????????????????????????????????? | | ??##?????????????????????????????????????????????? | | ?????????????????????????????????????????????????? | | ?????????????????????????????????????????????????? | | ?????????????????????????????????????????????????? | | ?????????????????????????????????????????????????? | | ?????????????????????????????????????????????????? | | ?????????????????????????????????????????????????? | | ?????????????????????????????????????????????????? | | ?????????????????????????????????????????????????? | | ?????????????????????????????????????????????????? | | ?????????????????????????????????????????????????? | | ?????????????????????????????????????????????????? | | ?????????????????????????????????????????????????? | | ?????????????????????????????????????????????????? | | ?????????????????????????????????????????????????? | +----------------------------------------------------+ Best States ------------- Heat Dissipation 28 Energy Generation 18 Energy Capacity 310 Matter Stores 300 Matter Capacity 300 Sight Range 16 Robot Scan Range 14 Terrain Scan Density 10 Armor Coverage 450 Evasion (%) 55 Item Schematics ----------------- None Robot Schematics ------------------ None Fabricated ------------ Nothing Alien Tech Used ----------------- None Achievements -------------- None Challenges ------------ None Game ------ Seed SiegeRestorationBroadsword Manual? 0 Play Time 00:13:30 Cumulative 129.2 hours Start 2022.09.21 @ 21:29:10 End 2022.09.21 @ 21:47:35 Sessions 1 Manual Loads 0 Difficulty Rogue Special Mode None Game No. 103 Rogue 100 Adventurer 3 Explorer 0 Win Type - Total 1 Types 1/0/0/0/0/0/0/0/0 Lore% 54 Gallery% 53 Achievement% 48 Wizard Run 0 Options --------- ASCII 0 Keyboard 0 Movement Numpad Keybinds 0 Fullscreen 1 Font 18/SmallcapsGlow Map View 76x50 Tactical HUD 1 Map Filters NONE Filters NONE Steam 1 RUN: ddea4e58-b264-4542-b7cc-2d6ca98826f6